bitfinex/quotes_SOLUSD_20250902
["timestamp","ask_amount","ask_price","bid_price","bid_amount"]
[1756809067082,13.59559401,204.0,203.97,4.90265155]
[1756809067589,13.59559401,204.0,203.97,8.34716412]
[1756809067775,13.59559401,204.0,203.98,3.44451257]
[1756809067970,13.59559401,204.0,203.97,4.90265155]
[1756809068172,16.37010658,204.0,203.93,4.9036434]
[1756809068377,0.28432314,203.97,203.93,0.67]
[1756809068580,38.12,203.96,203.93,0.67]
[1756809068777,38.12,203.96,203.93,3.44451257]
[1756809069413,13.87991715,203.95,203.92,4.93383729]
[1756809070510,13.87991715,203.95,203.92,5.60383729]
[1756809071004,13.87991715,203.95,203.92,8.37834986]
[1756809074115,0.28432314,203.99,203.94,2.77451257]
[1756809074291,13.87991715,203.97,203.96,2.77451257]
[1756809074482,13.87991715,203.96,203.95,2.77451257]
[1756809074788,13.87991715,203.96,203.94,0.67]
[1756809074989,13.87991715,203.96,203.95,2.77451257]
[1756809076203,13.87991715,203.96,203.95,7.6776751]
[1756809077118,13.87991715,203.96,203.95,4.90316253]
[1756809078025,51.99991715,203.96,203.95,4.90316253]
[1756809079127,13.87991715,203.96,203.95,4.90316253]
[1756809079311,51.99991715,203.96,203.95,4.90316253]
[1756809081001,13.87991715,203.95,203.93,4.90341379]
[1756809081212,51.71559401,203.94,203.93,4.90341379]
[1756809081414,51.71559401,203.94,203.93,5.57341379]
[1756809082806,51.71559401,203.94,203.93,4.90341379]
[1756809083103,51.71559401,203.94,203.92,0.03]
[1756809083104,13.87991715,203.93,203.92,0.03]
[1756809083626,18.81617521,203.93,203.92,0.03]
[1756809087615,56.93617521,203.93,203.92,0.03]
[1756809088129,18.81617521,203.93,203.92,0.03]
[1756809088318,56.95617521,203.93,203.92,0.03]
[1756809088630,56.35617521,203.93,203.92,0.03]
[1756809089234,56.95617521,203.93,203.92,0.03]
[1756809089730,57.09833678,203.93,203.92,0.03]
[1756809089929,62.00198018,203.93,203.92,0.03]
[1756809090930,14.02207872,203.92,203.91,0.03]
[1756809091111,18.35833678,203.92,203.91,0.03]
[1756809091316,18.95833678,203.92,203.91,0.03]
[1756809091722,20.92456678,203.92,203.91,0.03]
[1756809092022,25.82845065,203.92,203.91,0.03]
[1756809092742,14.02207872,203.9,203.89,0.03]
[1756809092909,60.83459484,203.9,203.89,0.03]
[1756809093234,14.62207872,203.9,203.89,0.03]
[1756809093403,57.09833678,203.9,203.89,0.03]
[1756809093801,62.00432337,203.9,203.89,0.03]
[1756809094003,66.90868825,203.9,203.89,0.03]
[1756809097922,24.43243019,203.9,203.89,0.03]
[1756809098124,71.24494631,203.9,203.89,0.03]
[1756809100415,71.24494631,203.9,203.84,0.66]
[1756809100416,0.28432314,203.85,203.74,0.14216157]
[1756809100632,0.28432314,203.82,203.78,4.33625806]
[1756809100843,13.87991715,203.8,203.79,0.66]
[1756809101427,13.87991715,203.8,203.79,5.56701212]
[1756809101639,0.28432314,203.8,203.79,5.56701212]
[1756809101828,52.01991715,203.8,203.79,5.56701212]
[1756809102832,52.01991715,203.8,203.79,0.66]
[1756809103219,52.01991715,203.8,203.79,5.56701212]
[1756809105240,56.35617521,203.8,203.79,0.66]
[1756809105731,13.59559401,203.79,203.75,9.24423352]
[1756809105944,13.87991715,203.77,203.75,9.24423352]
[1756809106114,52.01991715,203.76,203.75,4.90797546]
[1756809106319,52.01991715,203.76,203.75,9.90423352]
[1756809107339,38.27174314,203.82,203.75,9.90423352]
[1756809107543,13.87991715,203.8,203.79,9.24327018]
[1756809107723,12.27174314,203.82,203.79,9.24327018]
[1756809108045,51.73559401,203.81,203.79,4.90701212]
[1756809108243,51.73559401,203.81,203.8,4.33625806]
[1756809108454,51.73559401,203.81,203.8,4.99625806]
[1756809108822,13.59559401,203.81,203.8,4.99625806]
[1756809109542,13.59559401,203.9,203.81,17.17285707]
[1756809109748,0.6,203.94,203.88,4.33625806]
[1756809109749,13.59559401,203.89,203.88,4.33625806]
[1756809109917,51.73559401,203.89,203.88,4.99625806]
[1756809110117,52.01991715,203.89,203.88,4.99625806]
[1756809110616,51.73559401,203.89,203.88,4.99625806]
[1756809110833,52.01991715,203.89,203.88,4.99625806]
[1756809111322,51.87775558,203.89,203.88,9.90110404]
[1756809111528,51.87775558,203.89,203.88,5.56484598]
[1756809111733,52.01991715,203.89,203.88,5.56484598]
[1756809112730,52.01991715,203.89,203.88,9.90110404]
[1756809113266,52.01991715,203.89,203.88,5.56484598]
[1756809113420,13.87991715,203.88,203.85,0.66]
[1756809113616,0.28432314,203.86,203.85,0.66]
[1756809114138,13.87991715,203.86,203.83,4.99625806]
[1756809114437,13.87991715,203.86,203.81,12.26632648]
[1756809114438,13.87991715,203.84,203.81,12.26632648]
[1756809114638,38.14,203.83,203.81,12.26632648]
[1756809114951,13.73775558,203.9,203.82,4.99625806]
[1756809115246,13.87991715,203.9,203.89,4.33625806]
[1756809115419,52.01991715,203.9,203.89,9.90086348]
[1756809115619,13.87991715,203.9,203.89,9.90086348]
[1756809115845,52.01991715,203.9,203.89,5.56460542]
[1756809116146,52.01991715,203.9,203.89,9.90086348]
[1756809116731,52.01991715,203.9,203.89,5.56460542]
[1756809117136,0.28432314,203.88,203.86,0.66]
[1756809117472,38.42432314,203.87,203.86,0.66]
[1756809117761,52.01991715,203.87,203.86,4.90532718]
[1756809119042,52.01991715,203.87,203.86,5.56532718]
[1756809120446,52.01991715,203.87,203.86,9.90158524]
[1756809121174,52.01991715,203.87,203.86,5.56532718]
[1756809121522,52.01991715,203.87,203.86,4.90532718]
[1756809122659,13.87991715,203.86,203.85,9.24182587]
[1756809122958,0.28432314,203.86,203.85,9.24182587]
[1756809123155,0.28432314,203.86,203.85,9.90182587]
[1756809123156,52.01991715,203.86,203.85,9.90182587]
[1756809123332,13.59559401,203.86,203.85,9.90182587]
[1756809123526,51.73559401,203.86,203.85,9.90182587]
[1756809124325,0.28432314,203.89,203.85,22.16574541]
[1756809124530,13.59559401,203.92,203.88,8.67251612]
[1756809124831,51.73559401,203.92,203.91,4.33625806]
[1756809125135,51.73559401,203.92,203.91,4.99625806]
[1756809125341,51.73559401,203.92,203.91,0.66]
[1756809125534,13.59559401,203.92,203.91,4.99625806]
[1756809125733,51.73559401,203.92,203.91,4.99625806]
[1756809126736,51.73559401,203.92,203.91,9.90038242]
[1756809126936,13.59559401,203.92,203.91,9.90038242]
[1756809127134,0.06,203.93,203.91,9.90038242]
[1756809127135,1e-08,203.93,203.91,9.90038242]
[1756809127337,1e-08,203.93,203.92,5.13841963]
[1756809127730,1e-08,203.96,203.92,0.80216157]
[1756809127931,1e-08,203.96,203.91,17.16443528]
[1756809127932,13.87991716,203.96,203.91,17.16443528]
[1756809128142,13.87991716,203.96,203.95,4.33625806]
[1756809128358,51.99991716,203.96,203.95,4.33625806]
[1756809128883,51.99991716,203.96,203.95,9.23942059]
[1756809129093,51.99991716,203.96,203.93,4.33625806]
[1756809129380,13.87991715,203.93,203.88,4.90484598]
[1756809129581,0.28432314,203.91,203.88,4.90484598]
[1756809129778,13.59559401,203.89,203.88,5.56484598]
[1756809129964,13.59559401,203.89,203.88,4.90484598]
[1756809130354,13.87991715,203.89,203.88,5.56484598]
[1756809131750,13.87991715,203.89,203.88,9.90110404]
[1756809132006,13.87991715,203.89,203.88,35.90110404]
[1756809132879,0.06,203.95,203.88,48.163219]
[1756809133085,0.28432314,203.93,203.9,4.33625806]
[1756809133276,4.39625806,203.95,203.9,30.33625806]
[1756809133277,13.87991715,203.91,203.9,30.33625806]
[1756809133450,13.87991715,203.91,203.9,26.66]
[1756809133771,13.87991715,203.91,203.9,5.56436488]
[1756809134350,13.87991715,203.91,203.9,4.90436488]
[1756809134675,13.87991715,203.91,203.9,30.90436488]
[1756809134888,18.21617521,203.91,203.9,26.0]
[1756809135052,18.81617521,203.91,203.85,9.24182587]
[1756809135258,0.28432314,203.89,203.85,9.90182587]
[1756809135477,0.28432314,203.89,203.86,0.66]
[1756809135478,13.59559401,203.87,203.86,0.66]
[1756809135853,13.59559401,203.87,203.86,5.56532718]
[1756809136567,13.59559401,203.87,203.86,9.90158524]
[1756809137553,13.59559401,203.87,203.86,4.90532718]
[1756809137759,13.59559401,203.87,203.86,9.24158524]
[1756809138160,13.59559401,203.87,203.86,9.90158524]
[1756809140159,13.87991715,203.87,203.86,9.24158524]
[1756809140365,13.87991715,203.87,203.86,4.90532718]
[1756809143582,13.87991715,203.87,203.85,26.0]
[1756809143798,3.37641869,203.89,203.85,26.0]
[1756809143799,0.60000001,203.96,203.88,26.0]
[1756809144096,1e-08,203.96,203.94,2.77641869]
[1756809144296,13.59559401,203.94,203.93,2.77641869]
[1756809144798,13.59559401,203.94,203.93,8.34006209]
[1756809144985,0.06,203.95,203.93,8.34006209]
[1756809145170,51.71559401,203.94,203.93,30.9036434]
[1756809145799,51.71559401,203.94,203.93,31.5636434]
[1756809146308,51.99991715,203.94,203.93,34.34006209]
[1756809146482,51.99991715,203.94,203.93,33.68006209]
[1756809147287,51.99991715,203.94,203.93,34.34006209]
[1756809147606,51.99991715,203.94,203.93,8.34006209]
[1756809148294,0.06,203.95,203.93,8.34006209]
[1756809148492,0.06,203.95,203.94,3.43641869]
[1756809148896,0.06,203.95,203.94,8.33982165]
[1756809152315,1e-08,203.96,203.94,8.48198322]
[1756809152527,1e-08,203.96,203.95,3.43641869]
[1756809152821,1e-08,203.96,203.95,8.33958122]
[1756809152995,1e-08,203.96,203.95,5.56316253]
[1756809153431,1e-08,203.96,203.95,8.33958122]
[1756809154416,51.99991716,203.96,203.95,4.90316253]
[1756809154718,13.59559401,203.95,203.93,4.90351183]
[1756809154912,13.59559401,203.93,203.9,4.90436488]
[1756809155117,38.14,203.92,203.9,4.90436488]
[1756809155322,13.59559401,203.91,203.9,4.90436488]
[1756809156797,13.59559401,203.94,203.9,3.43641869]
[1756809156993,13.59559401,203.94,203.89,43.16611898]
[1756809156994,13.59559401,203.94,203.93,2.77641869]
[1756809157217,13.59559401,203.94,203.93,3.43641869]
[1756809157613,0.06,203.97,203.93,3.43641869]
[1756809157798,0.06,203.97,203.95,2.77641869]
[1756809158207,0.06,203.97,203.95,3.43641869]
[1756809158811,13.65559401,203.97,203.95,4.90316253]
[1756809159016,3.06074184,203.96,203.95,4.90316253]
[1756809159315,13.59559401,203.95,203.92,26.0]
[1756809159521,13.59559401,203.93,203.91,4.90412436]
[1756809160233,0.28432314,203.92,203.89,4.90460542]
[1756809160403,13.87991715,203.9,203.89,4.90460542]
[1756809160805,17.25633584,203.9,203.86,0.03]
[1756809161129,13.59559401,203.87,203.86,5.59532041]
[1756809161427,0.28432314,203.88,203.86,5.59532041]
[1756809161630,0.6,203.93,203.86,11.87508218]
[1756809161631,6.93976177,203.91,203.86,11.87508218]
[1756809161824,52.11991715,203.9,203.86,11.87508218]
[1756809162042,52.11991715,203.9,203.86,24.13840014]
[1756809162222,52.11991715,203.9,203.86,24.79840014]
[1756809162419,13.87991715,203.9,203.86,24.79840014]
[1756809162629,52.09991715,203.9,203.89,6.93976177]
[1756809162810,52.09991715,203.9,203.89,4.90460542]
[1756809163010,13.87991715,203.9,203.89,11.84436719]
[1756809163718,13.87991715,203.9,203.89,12.50436719]
[1756809165016,6.93976178,203.96,203.89,24.76588075]
[1756809165218,0.14216157,203.94,203.91,6.93976177]
[1756809165419,0.28432314,203.94,203.9,6.93976177]
[1756809166531,0.28432314,203.94,203.91,11.84388613]
[1756809166532,13.87991715,203.92,203.91,11.84388613]
[1756809166737,13.87991715,203.92,203.91,12.50388613]
[1756809166943,13.87991715,203.92,203.91,4.90412436]
[1756809167820,20.81967892,203.92,203.91,4.90412436]
[1756809168525,21.41967892,203.92,203.88,4.90484598]
[1756809169109,20.81967892,203.92,203.88,5.56484598]
[1756809169315,0.28432314,203.94,203.89,7.59976177]
[1756809169509,0.28432314,203.91,203.9,0.66]
[1756809170205,0.28432314,203.91,203.89,6.93976177]
[1756809170407,0.28432314,203.91,203.9,4.90436488]
[1756809171035,0.28432314,203.91,203.9,5.56436488]
[1756809171332,0.28432314,203.91,203.9,4.90436488]
[1756809174739,0.28432314,203.93,203.89,4.90460542]
[1756809174938,13.87991715,203.9,203.89,4.90460542]
[1756809175233,52.03991715,203.9,203.89,4.90460542]
[1756809176341,13.87991715,203.9,203.89,4.90460542]
[1756809176545,52.03991715,203.9,203.89,4.90460542]
[1756809178046,51.99991715,203.9,203.89,11.84436719]
[1756809178728,51.99991715,203.9,203.89,4.90460542]
[1756809179360,0.6,203.94,203.89,4.90460542]
[1756809179361,14.80165254,203.95,203.89,24.10588075]
[1756809179646,0.14216157,203.92,203.91,6.93976177]
[1756809180023,0.14216157,203.92,203.9,6.93976177]
[1756809180343,13.59559401,203.91,203.9,7.59976177]
[1756809181140,0.06,203.95,203.92,26.0]
[1756809181450,0.06,203.95,203.94,28.77217392]
[1756809181827,0.06,203.95,203.94,29.43217392]
[1756809182023,1e-08,203.96,203.95,26.0]
[1756809182224,1e-08,203.96,203.95,29.43217392]
[1756809182837,0.06,203.98,203.95,29.57433549]
[1756809183036,0.06,203.99,203.97,2.77217392]
[1756809183250,1e-08,203.99,203.96,0.66]
[1756809183438,1e-08,203.99,203.98,28.77217392]
[1756809183618,1e-08,203.99,203.97,4.90268176]
[1756809183818,1e-08,203.99,203.97,7.67485568]
[1756809184019,1e-08,203.99,203.97,8.33485568]
[1756809184456,1e-08,203.99,203.98,3.43217392]
[1756809184744,1e-08,203.99,203.98,2.77217392]
[1756809185432,13.87991715,203.98,203.96,4.90292214]
[1756809185633,17.25209107,203.98,203.96,4.90292214]
[1756809185821,0.28432314,203.95,203.93,4.9036434]
[1756809187140,13.87991715,203.94,203.93,4.9036434]
[1756809188147,0.28432314,203.94,203.93,4.9036434]
[1756809189441,0.28432314,203.94,203.9,0.03]
[1756809189442,0.28432314,203.93,203.9,4.93436488]
[1756809189616,13.59559401,203.92,203.9,4.93436488]
[1756809189822,13.59559401,203.92,203.9,5.62436488]
[1756809190220,13.59559401,203.92,203.91,3.46217392]
[1756809191040,13.87991715,203.93,203.91,3.46217392]
[1756809191354,13.87991715,203.93,203.92,2.77217392]
[1756809191643,13.87991715,203.93,203.92,7.67605779]
[1756809191842,12.32128434,203.98,203.92,20.62576748]
[1756809192044,0.28432314,203.96,203.93,2.77217392]
[1756809192423,0.28432314,203.96,203.93,3.46217392]
[1756809193043,0.28432314,203.96,203.94,3.46217392]
[1756809193250,0.06,203.98,203.95,28.77217392]
[1756809193562,0.06,203.98,203.97,2.77217392]
[1756809193853,0.06,203.98,203.97,7.67485568]
[1756809194056,0.06,203.98,203.97,8.36485568]
[1756809194438,0.06,203.98,203.97,7.67485568]
[1756809194750,51.83559401,203.98,203.97,4.90268176]
[1756809195148,51.83559401,203.98,203.97,7.67485568]
[1756809196444,13.65559401,203.98,203.97,8.36485568]
[1756809197454,13.65559401,203.98,203.97,7.67485568]
[1756809198649,13.65559401,203.98,203.97,17.67485568]
[1756809199145,13.93991715,203.98,203.97,17.67485568]
[1756809199348,52.07991715,203.98,203.97,18.36485568]
[1756809199574,13.65559401,203.98,203.97,18.36485568]
[1756809201163,13.93991715,203.98,203.97,14.90268176]
[1756809201334,17.31209107,203.98,203.97,10.0]
[1756809203345,17.31209107,203.98,203.97,10.03]
[1756809203544,27.31209107,203.98,203.97,10.03]
[1756809203748,65.47209107,203.98,203.97,10.03]
[1756809204649,70.51669405,203.98,203.97,10.03]
[1756809205442,72.0812921,203.98,203.97,10.03]
[1756809205640,67.17885069,203.98,203.97,10.03]
[1756809205840,72.0812921,203.98,203.97,10.03]
[1756809208241,39.87991715,203.95,203.94,0.03]
[1756809208559,82.35668912,203.95,203.94,0.03]
[1756809208762,82.35668912,203.95,203.92,0.03]
[1756809208763,78.76207872,203.95,203.92,0.03]
[1756809208966,13.73775558,203.93,203.92,0.03]
[1756809209135,14.02207872,203.93,203.92,0.03]
[1756809209340,18.95885069,203.93,203.92,0.03]
[1756809209665,57.09885069,203.93,203.92,0.03]
[1756809210243,62.00249409,203.93,203.92,0.03]
[1756809211059,66.33926606,203.93,203.92,0.03]
[1756809211447,57.09885069,203.93,203.92,0.03]
[1756809211763,62.00249409,203.93,203.92,0.03]
[1756809212548,72.00249409,203.93,203.92,0.03]
[1756809212749,28.95885069,203.93,203.92,0.03]
[1756809212948,67.09885069,203.93,203.92,0.03]
[1756809213846,28.95885069,203.93,203.92,0.03]
[1756809214066,67.09885069,203.93,203.92,0.03]
[1756809215138,28.95885069,203.93,203.92,0.03]
[1756809215346,67.07885069,203.93,203.92,0.03]
[1756809216074,28.95885069,203.93,203.92,0.03]
[1756809216258,66.47885069,203.93,203.92,0.03]
[1756809216956,28.35885069,203.93,203.92,0.03]
[1756809217169,66.49885069,203.93,203.92,0.03]
[1756809217382,67.09885069,203.93,203.92,0.03]
[1756809217681,72.00249409,203.93,203.92,0.03]
[1756809220279,67.09885069,203.93,203.92,0.03]
[1756809220465,66.49885069,203.93,203.92,0.03]
[1756809220777,71.40249409,203.93,203.92,0.03]
[1756809221179,72.00249409,203.93,203.92,0.03]
[1756809222654,72.00249409,203.93,203.9,0.03]
[1756809222655,39.59559401,203.91,203.9,0.03]
[1756809222858,86.69346109,203.91,203.9,0.03]
[1756809223058,61.43562266,203.91,203.9,0.03]
[1756809223366,71.43562266,203.91,203.9,0.03]
[1756809224462,13.87991715,203.9,203.89,0.03]
[1756809224779,40.02207872,203.87,203.86,0.03]
[1756809224971,82.49885069,203.87,203.77,4.90747082]
[1756809225281,82.49885069,203.87,203.8,0.67]
[1756809225282,18.21668912,203.86,203.8,0.67]
[1756809225661,20.18359591,203.86,203.8,0.67]
[1756809226074,15.98898551,203.86,203.83,0.7]
[1756809226296,54.16898551,203.86,203.83,0.7]
[1756809226479,20.32575748,203.86,203.83,0.7]
[1756809226674,15.5625008,203.86,203.85,0.7]
[1756809226898,13.59559401,203.86,203.85,0.7]
[1756809227066,52.17991715,203.86,203.85,0.7]
[1756809227272,13.87991715,203.86,203.85,0.7]
[1756809227472,51.89559401,203.86,203.85,0.7]
[1756809227672,52.17991715,203.86,203.85,0.7]
[1756809229194,52.17991715,203.86,203.85,5.60556781]
[1756809230775,52.17991715,203.86,203.85,5.67408502]
[1756809230983,52.17991715,203.86,203.85,0.76851721]
[1756809231179,56.51668912,203.86,203.85,0.09851721]
[1756809231407,56.51668912,203.86,203.85,0.76851721]
[1756809232200,52.17991715,203.86,203.85,5.67408502]
[1756809232388,56.51668912,203.86,203.85,5.67408502]
[1756809233275,56.51668912,203.86,203.85,0.76851721]
[1756809234911,56.51668912,203.86,203.85,0.09851721]
[1756809237703,52.17991715,203.86,203.85,0.09851721]
[1756809237877,56.51668912,203.86,203.85,0.76851721]
[1756809238074,52.17991715,203.86,203.85,0.76851721]
[1756809238278,56.51668912,203.86,203.85,0.09851721]
[1756809238686,56.51668912,203.86,203.85,5.67408502]
[1756809238995,56.51668912,203.86,203.85,0.76851721]
[1756809239682,13.87991715,203.86,203.85,0.76851721]
[1756809239912,56.49668912,203.86,203.85,0.09851721]
[1756809240421,52.15991715,203.86,203.85,0.76851721]
[1756809240616,56.49668912,203.86,203.85,0.76851721]
[1756809242594,13.87991715,203.86,203.85,5.67408502]
[1756809242799,52.13991715,203.86,203.85,5.67408502]
[1756809243399,52.19991715,203.86,203.85,5.67408502]
[1756809243790,56.53668912,203.86,203.85,5.00408502]
[1756809244889,56.53668912,203.86,203.85,5.67408502]
[1756809245091,56.53668912,203.86,203.85,0.76851721]
[1756809245438,13.93991715,203.86,203.85,5.67408502]
[1756809245591,13.65559401,203.86,203.85,0.76851721]
[1756809245926,51.89559401,203.86,203.85,26.76851721]
[1756809246100,56.51668912,203.86,203.85,0.76851721]
[1756809246301,52.17991715,203.86,203.85,0.76851721]
[1756809246499,52.17991715,203.86,203.85,5.67408502]
[1756809247513,56.51668912,203.86,203.85,5.67408502]
[1756809249005,56.51668912,203.86,203.85,0.09851721]
[1756809249701,52.17991715,203.86,203.85,0.09851721]
[1756809249902,56.51668912,203.86,203.85,0.09851721]
[1756809251826,18.27668912,203.86,203.85,0.09851721]
[1756809252018,56.53668912,203.86,203.85,0.81851721]
[1756809252827,56.53668912,203.86,203.85,0.09851721]
[1756809255421,56.53668912,203.86,203.85,0.81851721]
[1756809255626,56.53668912,203.86,203.85,0.09851721]
[1756809256012,56.53668912,203.86,203.85,0.81851721]
[1756809257212,18.27668912,203.86,203.85,0.81851721]
[1756809257418,52.01775558,203.86,203.85,5.72408502]
[1756809257618,52.15991715,203.86,203.85,5.72408502]
[1756809258025,0.06,203.86,203.85,10.06085699]
[1756809258331,38.28,203.86,203.85,10.06085699]
[1756809258629,0.06,203.86,203.85,10.06085699]
[1756809258829,0.06,203.86,203.85,5.72408502]
[1756809259141,0.06,203.86,203.85,10.06085699]
[1756809259505,38.28,203.86,203.85,10.06085699]
[1756809261721,52.15991715,203.86,203.85,5.72408502]
[1756809261923,52.15991715,203.86,203.85,5.00408502]
[1756809262130,56.49668912,203.86,203.85,5.00408502]
[1756809262428,56.49668912,203.86,203.85,0.09851721]
[1756809263952,57.09668912,203.86,203.85,0.09851721]
[1756809264629,52.75991715,203.86,203.85,0.09851721]
[1756809264825,18.27668912,203.86,203.85,0.09851721]
[1756809265025,57.07668912,203.86,203.85,0.09851721]
[1756809265332,18.27668912,203.86,203.85,0.09851721]
[1756809265533,56.45668912,203.86,203.85,0.09851721]
[1756809265736,56.45668912,203.86,203.85,5.00408502]
[1756809266233,18.27668912,203.86,203.85,5.72408502]
[1756809266442,52.11991715,203.86,203.85,5.72408502]
[1756809266630,18.27668912,203.86,203.85,5.72408502]
[1756809266830,52.11991715,203.86,203.85,5.72408502]
[1756809268157,51.83559401,203.86,203.85,5.72408502]
[1756809268765,13.93991715,203.86,203.85,5.72408502]
[1756809268945,52.11991715,203.86,203.85,5.72408502]
[1756809275275,0.06,203.86,203.85,8.50092303]
[1756809275457,38.22,203.86,203.85,8.50092303]
[1756809276174,0.06,203.86,203.85,8.50092303]
[1756809276376,38.22,203.86,203.85,5.72408502]
[1756809276671,38.22,203.86,203.85,8.50092303]
[1756809277244,38.22,203.86,203.85,5.72408502]
[1756809277472,0.06,203.86,203.85,5.72408502]
[1756809277673,38.2,203.86,203.85,8.50092303]
[1756809281964,38.2,203.86,203.85,5.72408502]
[1756809283491,0.06,203.86,203.85,5.72408502]
[1756809283664,38.2,203.86,203.85,5.72408502]
[1756809284078,0.06,203.86,203.85,5.72408502]
[1756809284382,38.2,203.86,203.85,5.72408502]
[1756809284690,38.2,203.86,203.85,8.50092303]
[1756809285680,38.2,203.86,203.85,5.72408502]
[1756809285867,38.2,203.86,203.85,5.00408502]
[1756809286263,51.79559401,203.86,203.85,5.00408502]
[1756809286481,51.79559401,203.86,203.85,5.68408502]
[1756809287369,51.79559401,203.86,203.85,31.68408502]
[1756809288081,51.79559401,203.86,203.85,31.00408502]
[1756809289073,51.79559401,203.86,203.85,31.68408502]
[1756809290601,51.79559401,203.86,203.85,31.00408502]
[1756809290898,51.79559401,203.86,203.85,31.68408502]
[1756809293309,51.79559401,203.86,203.85,5.00408502]
[1756809294506,51.79559401,203.86,203.85,5.68408502]
[1756809295105,51.79559401,203.86,203.85,8.46092303]
[1756809296103,0.06,203.86,203.85,8.46092303]
[1756809300685,0.06,203.86,203.85,7.78092303]
[1756809300891,0.06,203.86,203.85,8.46092303]
[1756809309324,1e-08,203.86,203.85,34.46092303]
[1756809310120,1e-08,203.86,203.85,8.6030846]
[1756809310422,1e-08,203.86,203.85,49.34401279]
[1756809311102,1e-08,203.86,203.85,23.34401279]
[1756809313028,0.06,203.89,203.88,26.0]
[1756809313029,1e-08,203.89,203.88,26.0]
[1756809313234,1e-08,203.89,203.88,28.91899958]
[1756809313535,1e-08,203.89,203.88,29.62899958]
[1756809313749,1e-08,203.89,203.88,44.36775513]
[1756809314950,1e-08,203.89,203.88,53.28731328]
[1756809315346,1e-08,203.89,203.88,49.27260111]
[1756809319032,1e-08,203.89,203.88,46.35360153]
[1756809319249,1e-08,203.89,203.88,33.68168399]
[1756809319843,0.60000001,203.89,203.88,4.90484598]
[1756809321149,14.19559402,203.89,203.88,4.90484598]
[1756809322555,1e-08,203.89,203.88,7.68168399]
[1756809322734,1e-08,203.89,203.88,8.39168399]
[1756809323254,1e-08,203.89,203.88,7.68168399]
[1756809323431,1e-08,203.89,203.88,7.71168399]
[1756809325570,1e-08,203.89,203.88,8.42168399]
[1756809326956,1e-08,203.89,203.88,7.71168399]
[1756809327572,1e-08,203.89,203.88,9.27033015]
[1756809327749,1e-08,203.89,203.88,9.98033015]
[1756809328166,1e-08,203.89,203.88,9.27033015]
[1756809330659,1e-08,203.89,203.88,30.93484598]
[1756809332283,13.59559402,203.89,203.88,4.93484598]
[1756809332570,13.59559402,203.89,203.88,0.03]
[1756809335274,1e-08,203.89,203.88,31.07548417]
[1756809335478,1e-08,203.89,203.88,35.98081135]
[1756809336170,1e-08,203.89,203.88,36.12297292]
[1756809336959,0.06,203.97,203.89,0.14216157]
[1756809337175,0.06,203.97,203.96,4.33548417]
[1756809337574,0.06,203.97,203.96,7.00997598]
[1756809337754,1e-08,203.97,203.96,7.00997598]
[1756809337961,1e-08,203.98,203.97,0.14216157]
[1756809338266,38.16,204.02,204.0,26.0]
[1756809338267,0.06,204.02,204.0,26.0]
[1756809338473,0.06,204.02,204.01,0.71]
[1756809338676,0.06,204.02,204.01,5.04548417]
[1756809338869,0.06,204.02,204.01,19.7762789]
[1756809339070,0.06,204.02,204.01,24.6779994]
[1756809340198,0.06,204.02,204.01,23.9679994]
[1756809340418,0.06,204.02,204.01,4.9017205]
[1756809340419,14.25559401,204.02,204.01,4.9017205]
[1756809340579,14.25559401,204.02,203.98,14.73368858]
[1756809340580,0.28432314,204.0,203.98,14.73368858]
[1756809340780,0.28432314,204.0,203.95,4.90316253]
[1756809340781,0.28432314,203.97,203.95,4.90316253]
[1756809340972,13.59559401,203.96,203.92,4.90388387]
[1756809341172,13.59559401,203.96,203.92,18.49947788]
[1756809342991,4.93548417,203.96,203.92,18.49947788]
[1756809343382,14.47991715,203.95,203.92,13.59559401]
[1756809343571,13.59559401,203.93,203.89,9.92008959]
[1756809343773,13.59559401,203.93,203.9,4.33548417]
[1756809344100,13.59559401,203.93,203.9,5.01548417]
[1756809344293,13.59559401,203.93,203.91,5.01548417]
[1756809344473,38.1,203.93,203.92,4.33548417]
[1756809344815,13.59559401,203.93,203.91,4.33548417]
[1756809345294,13.59559401,203.93,203.92,4.90388387]
[1756809345476,13.59559401,203.92,203.91,4.90411613]
[1756809345670,14.47991715,203.92,203.91,4.90411613]
[1756809346504,14.47991715,203.92,203.89,4.9043862]
[1756809346695,18.81540132,203.92,203.89,4.9043862]
[1756809346920,0.6,203.91,203.89,4.9043862]
[1756809347091,38.04359934,203.9,203.89,4.9043862]
[1756809347292,38.04359934,203.9,203.89,0.05640619]
[1756809349311,51.92351649,203.9,203.89,0.05640619]
[1756809352499,38.1,203.9,203.89,5.07189036]